[Event "Polish University-ch Teams 2024"]
[Site "Lublin"]
[Date "2024.02.24"]
[Round "5.11"]
[White "Adamczyk, Zuzanna"]
[Black "Babiarz, Arkadiusz"]
[Result "1-0"]
[ECO "B41"]
[WhiteElo "1970"]
[BlackElo "2159"]
[Annotator "RC"]
[PlyCount "75"]
[EventDate "2024.02.22"]
[EventType "team-tourn"]
[EventCountry "POL"]
[SourceTitle "playchess.com"]
[Source "ChessBase"]
[SourceQuality "1"]
[TimeControl "900+5"]

1. e4 {[%emt 0:00:02]} c5 {[%emt 0:00:01]} 2. Nf3 {[%emt 0:00:02]} e6 {[%emt 0:00:00]} 3. d4 {[%emt 0:00:02]} cxd4 {[%emt 0:00:02]} 4. Nxd4 {[%emt 0:00:02]} a6 {[%emt 0:00:02]} 5. c4 {[%emt 0:00:03]} Nf6 {[%emt 0:00:02]} 6. Nc3 {[%emt 0:00:02]} Qc7 {[%emt 0:00:01]} 7. Be2 {[%emt 0:00:22]} Bb4 {[%emt 0:00:59]} 8. Qd3 {[%emt 0:00:39]} d6 {[%emt 0:00:02]} 9. O-O {[%emt 0:01:36]} Nbd7 {[%emt 0:00:02]} 10. Qg3 {[%emt 0:03:21]} b6 {[%emt 0:02:00]} 11. f3 {[%emt 0:01:13]} O-O {[%emt 0:00:48]} 12. Nd1 {[%emt 0:01:36]} Bb7 {[%emt 0:01:07]} 13. Kh1 {[%emt 0:00:33]} Rac8 {[%emt 0:00:49]} 14. Nc2 {[%emt 0:00:30]} a5 {[%emt 0:00:11]} 15. a3 {[%emt 0:00:10]} Ne5 {[%emt 0:04:02]} 16. axb4 {[%emt 0:00:45]} Nxc4 {[%emt 0:00:02]} 17. Bxc4 {[%emt 0:01:28]} Qxc4 {[%emt 0:00:01]} 18. Nde3 {[%emt 0:00:14]} Qb5 {[%emt 0:00:08]} 19. Qe1 {[%emt 0:01:25]} a4 {[%emt 0:00:37]} 20. Bd2 {[%emt 0:00:17]} d5 {[%emt 0:01:19]} 21. e5 {[%emt 0:00:23]} Nd7 {[%emt 0:00:03]} 22. Bc3 {[%emt 0:00:07]} Ba6 {[%emt 0:01:21]} 23. Qd2 {[%emt 0:00:21]} Qc6 {[%emt 0:00:43]} 24. Rfe1 {[%emt 0:00:01]} Rfe8 {[%emt 0:00:43]} 25. f4 {[%emt 0:00:14]} b5 {[%emt 0:00:29]} 26. Bd4 {[%emt 0:00:12]} Rc7 {[%emt 0:00:13]} 27. Rec1 {[%emt 0:00:02]} Rec8 {[%emt 0:00:05]} 28. Bc3 {[%emt 0:00:30]} Nb6 {[%emt 0:00:09]} 29. Nd4 {[%emt 0:00:02]} Qd7 {[%emt 0:00:02]} 30. f5 {[%emt 0:00:29]} exf5 {[%emt 0:00:02]} 31. Ndxf5 {[%emt 0:00:07]} Nc4 {[%emt 0:00:45]} 32. Nxc4 {[%emt 0:00:02]} Rxc4 {[%emt 0:00:01]} 33. Nd6 {[%emt 0:00:05]} d4 {[%emt 0:00:16]} 34. Nxc8 {[%emt 0:00:18]} Bxc8 {[%emt 0:00:03]} 35. Bxd4 {[%emt 0:00:07]} Bb7 {[%emt 0:00:02]} 36. Rxc4 {[%emt 0:00:09]} bxc4 {[%emt 0:00:01]} 37. Be3 {[%emt 0:00:02]} Qc8 {[%emt 0:00:14]} 38. Rd1 {[%emt 0:00:02]} 1-0

[Event "Polish University-ch Teams 2024"]
[Site "Lublin"]
[Date "2024.02.24"]
[Round "5.12"]
[White "Giefert, Sara"]
[Black "Orlik, Sandra"]
[Result "0-1"]
[ECO "D04"]
[WhiteElo "1704"]
[BlackElo "1836"]
[Annotator "NA"]
[PlyCount "110"]
[EventDate "2024.02.22"]
[EventType "team-tourn"]
[EventCountry "POL"]
[SourceTitle "playchess.com"]
[Source "ChessBase"]
[SourceQuality "1"]
[TimeControl "900+5"]

1. d4 {[%emt 0:00:02]} Nf6 {[%emt 0:15:10]} 2. Nf3 {[%emt 0:00:02]} d5 {[%emt 0:00:00]} 3. b3 {[%emt 0:00:04]} Bf5 {[%emt 0:00:00]} 4. Bb2 {[%emt 0:00:07]} e6 {[%emt 0:00:00]} 5. e3 {[%emt 0:00:19]} c6 {[%emt 0:00:00]} 6. Be2 {[%emt 0:00:26]} Nbd7 {[%emt 0:00:00]} 7. Ne5 {[%emt 0:00:40]} h5 {[%emt 0:00:00]} 8. Nd2 {[%emt 0:00:31]} Bd6 {[%emt 0:00:00]} 9. f4 {[%emt 0:02:50]} Qe7 {[%emt 0:00:00]} 10. Bd3 {[%emt 0:02:24]} Ne4 {[%emt 0:00:00]} 11. Nxe4 {[%emt 0:01:06]} dxe4 {[%emt 0:00:00]} 12. Be2 {[%emt 0:00:18]} h4 {[%emt 0:00:00]} 13. Bh5 {[%emt 0:02:42]} g6 {[%emt 0:00:00]} 14. Bg4 {[%emt 0:00:26]} Nf6 {[%emt 0:00:00]} 15. h3 {[%emt 0:00:46]} Ba3 {[%emt 0:00:00]} 16. Bc3 {[%emt 0:01:26]} Bb4 {[%emt 0:00:00]} 17. Qd2 {[%emt 0:00:21]} Nd5 {[%emt 0:00:00]} 18. Bxb4 {[%emt 0:00:05]} Qxb4 {[%emt 0:00:00]} 19. Qxb4 {[%emt 0:00:25]} Nxb4 {[%emt 0:00:00]} 20. Kd2 {[%emt 0:00:01]} f6 {[%emt 0:00:00]} 21. Nc4 {[%emt 0:00:38]} Ke7 {[%emt 0:00:00]} 22. a3 {[%emt 0:00:22]} Nd5 {[%emt 0:00:00]} 23. Na5 {[%emt 0:00:06]} Rab8 {[%emt 0:00:00]} 24. c4 {[%emt 0:00:08]} Nc7 {[%emt 0:00:00]} 25. b4 {[%emt 0:00:12]} Rhd8 {[%emt 0:00:00]} 26. Kc3 {[%emt 0:00:04]} Ne8 {[%emt 0:00:00]} 27. Rad1 {[%emt 0:00:09]} Rd7 {[%emt 0:00:00]} 28. Rhg1 {[%emt 0:00:04]} Rc8 {[%emt 0:00:00]} 29. g3 {[%emt 0:00:13]} b6 {[%emt 0:00:00]} 30. Nb3 {[%emt 0:00:03]} Kf7 {[%emt 0:00:00]} 31. Bxf5 {[%emt 0:00:08]} exf5 {[%emt 0:00:00]} 32. g4 {[%emt 0:00:04]} Ng7 {[%emt 0:00:00]} 33. Rg2 {[%emt 0:00:06]} Rg8 {[%emt 0:00:05]} 34. Rgd2 {[%emt 0:00:12]} Rgd8 {[%emt 0:00:22]} 35. a4 {[%emt 0:00:01]} fxg4 {[%emt 0:00:12]} 36. hxg4 {[%emt 0:00:02]} g5 {[%emt 0:00:04]} 37. f5 {[%emt 0:00:06]} Ne8 {[%emt 0:00:12]} 38. a5 {[%emt 0:00:14]} Nc7 {[%emt 0:00:03]} 39. axb6 {[%emt 0:00:05]} axb6 {[%emt 0:00:02]} 40. Ra2 {[%emt 0:00:01]} b5 {[%emt 0:00:28]} 41. Nc5 {[%emt 0:00:09]} Re7 {[%emt 0:00:02]} 42. Rad2 {[%emt 0:00:15]} bxc4 {[%emt 0:00:03]} 43. Kxc4 {[%emt 0:00:02]} Nd5 {[%emt 0:00:01]} 44. Re2 {[%emt 0:00:03]} Rb8 {[%emt 0:00:04]} 45. Rb1 {[%emt 0:00:01]} Ra7 {[%emt 0:00:15]} 46. b5 {[%emt 0:00:09]} Nb6+ {[%emt 0:00:07]} 47. Kc3 {[%emt 0:00:10]} Nd5+ {[%emt 0:00:06]} 48. Kc4 {[%emt 0:00:02]} Nb6+ {[%emt 0:00:09]} 49. Kc3 {[%emt 0:00:01]} Na4+ {[%emt 0:00:07]} 50. Nxa4 {[%emt 0:00:06]} Rxa4 {[%emt 0:00:01]} 51. Reb2 {[%emt 0:00:13]} cxb5 {[%emt 0:00:08]} 52. Rxb5 {[%emt 0:00:02]} Rxb5 {[%emt 0:00:21]} 53. Rxb5 {[%emt 0:00:02]} Ra3+ {[%emt 0:00:02]} 54. Rb3 {[%emt 0:00:02]} Rxb3+ {[%emt 0:00:02]} 55. Kxb3 {[%emt 0:00:01]} h3 {[%emt 0:00:01]} 0-1

[Event "Polish University-ch Teams 2024"]
[Site "Lublin"]
[Date "2024.02.24"]
[Round "5.13"]
[White "Mis, Mieszko"]
[Black "Watorek, Marcin"]
[Result "1-0"]
[ECO "A09"]
[WhiteElo "2325"]
[BlackElo "2018"]
[Annotator "TA"]
[PlyCount "59"]
[EventDate "2024.02.22"]
[EventType "team-tourn"]
[EventCountry "POL"]
[SourceTitle "playchess.com"]
[Source "ChessBase"]
[SourceQuality "1"]
[TimeControl "900+5"]

{[%evp 9,59,-14,-11,-72,-70,-76,-72,-76,-79,-58,-23,-28,0,0,-4,-17,34,27,90,54,108,28,118,86,97,85,79,26,154,154,160,168,608,614,591,570,645,648,678,662,788,808,814,823,954,881,1520,1234,29987,29988,29988,29989]} 1. Nf3 {[%emt 0:00:03]} d5 {[%emt 0:00:01]} 2. c4 {[%emt 0:00:06]} d4 {[%emt 0:00:02]} 3. b4 {[%emt 0:00:03]} c5 {[%emt 0:00:06]} 4. Bb2 {[%emt 0:00:04]} f6 {[%emt 0:00:12]} 5. d3 {[%emt 0:00:37]} e5 {[%emt 0:00:07]} 6. g3 {[%emt 0:00:06]} (6. b5 $11) 6... cxb4 $17 {[%emt 0:00:22]} 7. a3 {[%emt 0:00:17]} Nc6 {[%emt 0:00:02]} 8. Bg2 {[%emt 0:00:10] Schwarz steht besser.} Nh6 {[%emt 0:00:54]} 9. O-O {[%emt 0:00:09][%cal Bh1f1,Bf1b1,Bb1b6][%mdl 32]} bxa3 {[%emt 0:00:35]} 10. Bxa3 {[%emt 0:00:13]} Bxa3 {[%emt 0:00:10]} 11. Nxa3 {[%emt 0:00:11]} O-O {[%emt 0:00:04]} 12. Nd2 {[%emt 0:00:20]} Be6 {[%emt 0:00:19]} (12... Bg4 $11) 13. Qa4 $14 {[%emt 0:00:18][%cal Of1b1][%mdl 1024] Weiss hat Kompensation.} Rc8 {[%emt 0:00:55] [#]} (13... Qe7 $11) 14. Rfb1 $1 $16 {[%emt 0:00:14]} Qe7 {[%emt 0:00:59] [#]} ({Vorzuziehen ist} 14... Qd7 $14) 15. Nc2 {[%emt 0:01:10]} (15. Nb5 $1 $16) 15... a5 {[%emt 0:02:43]} (15... Nf7 $11 {hält das Gleichgewicht.}) 16. Rb6 {[%emt 0:00:25][%cal Oa4b5]} Nf5 {[%emt 0:00:49]} 17. Rab1 {[%emt 0:00:10]} Rc7 {[%emt 0:00:34]} 18. Ne4 {[%emt 0:00:15]} ({Günstiger ist} 18. Na3 $16) 18... Nd6 {[%emt 0:01:11]} (18... Ra8 $1 $11 {bleibt in der Remisbreite.}) 19. Nxd6 {[%emt 0:00:16]} Qxd6 {[%emt 0:00:02]} 20. Rxb7 {[%emt 0:00:07] Weiß steht aktiver.} Bd7 $2 {[%emt 0:01:15] [#]} (20... Rfc8 21. Bxc6 Rxc6 (21... Qxc6 $2 {zu gefräßig.} 22. Qxc6 Rxc6 23. Ra7 $18) 22. Qxa5 Ra6) 21. c5 $1 $18 {[%emt 0:00:57][%cal Bc4c5,Bc5c6][%mdl 544]} Rxb7 {[%emt 0:00:54]} 22. Rxb7 {[%emt 0:00:02]} Qe6 {[%emt 0:01:45] [#]} 23. Rxd7 $1 {[%emt 0:00:06][%mdl 512]} Qxd7 {[%emt 0:00:01]} 24. Bxc6 {[%emt 0:00:02]} ({Weniger gut wäre} 24. Qxc6 Qxc6 25. Bxc6 Rc8 26. Bd5+ Kf8 $16) 24... Qc7 {[%emt 0:00:04]} 25. Bd5+ {[%emt 0:00:14]} Kh8 {[%emt 0:00:01]} 26. c6 {[%emt 0:00:09]} Rb8 {[%emt 0:00:13]} 27. Qc4 {[%emt 0:00:16]} Rb6 {[%emt 0:00:45]} 28. Na3 {[%emt 0:00:10] Weiss droht Qc5 und Matt.} Rb4 {[%emt 0:00:40]} 29. Qc5 {[%emt 0:00:06][%cal Rc5f8]} Rb8 {[%emt 0:01:18]} 30. Nb5 {[%emt 0:00:04] Gewichteter Fehlerwert: Weiß=0.16 (sehr präzise) /Schwarz=0.87.  Fehler:       	Weiß=2     	Schwarz=6     Ungenau:       	---       	Schwarz=1     OK:         	Weiß=6     	Schwarz=2     Bester:       	---       	Schwarz=3     Stark:        	Weiß=1     	---        Brilliant:      	Weiß=2     	---} 1-0

[Event "Polish University-ch Teams 2024"]
[Site "Lublin"]
[Date "2024.02.24"]
[Round "5.14"]
[White "Golda, Sebastian"]
[Black "Jarocka, Liwia"]
[Result "0-1"]
[ECO "B15"]
[WhiteElo "2107"]
[BlackElo "2199"]
[Annotator "RC"]
[PlyCount "100"]
[EventDate "2024.02.22"]
[EventType "team-tourn"]
[EventCountry "POL"]
[SourceTitle "playchess.com"]
[Source "ChessBase"]
[SourceQuality "1"]
[TimeControl "900+5"]

1. e4 {[%emt 0:00:01]} c6 {[%emt 0:00:00]} 2. d4 {[%emt 0:00:02]} d5 {[%emt 0:00:01]} 3. Nd2 {[%emt 0:00:01]} dxe4 {[%emt 0:00:01]} 4. Nxe4 {[%emt 0:00:01]} Nf6 {[%emt 0:00:01]} 5. Nxf6+ {[%emt 0:00:13]} exf6 {[%emt 0:00:01]} 6. c3 {[%emt 0:00:01]} Bd6 {[%emt 0:00:01]} 7. Bd3 {[%emt 0:00:01]} O-O {[%emt 0:00:01]} 8. Qc2 {[%emt 0:00:01]} Re8+ {[%emt 0:00:01]} 9. Ne2 {[%emt 0:00:01]} h5 {[%emt 0:00:01]} 10. Be3 {[%emt 0:00:14]} Nd7 {[%emt 0:00:02]} 11. O-O-O {[%emt 0:00:10]} b5 {[%emt 0:00:02]} 12. Ng3 {[%emt 0:04:36]} Nb6 {[%emt 0:00:05]} 13. Ne4 {[%emt 0:02:49]} Be6 {[%emt 0:00:30]} 14. Kb1 {[%emt 0:00:04]} Nd5 {[%emt 0:00:45]} 15. Bc1 {[%emt 0:00:16]} a5 {[%emt 0:00:13]} 16. Rhe1 {[%emt 0:01:09]} a4 {[%emt 0:00:25]} 17. f3 {[%emt 0:01:56]} b4 {[%emt 0:00:28]} 18. c4 {[%emt 0:00:02]} b3 {[%emt 0:00:01]} 19. Qf2 {[%emt 0:02:13]} bxa2+ {[%emt 0:00:25]} 20. Ka1 {[%emt 0:00:03]} Nb4 {[%emt 0:00:01]} 21. d5 {[%emt 0:00:26]} cxd5 {[%emt 0:00:35]} 22. cxd5 {[%emt 0:00:05]} Nxd3 {[%emt 0:00:03]} 23. Rxd3 {[%emt 0:00:05]} Bf5 {[%emt 0:00:40]} 24. Rde3 {[%emt 0:00:33]} Bxe4 {[%emt 0:01:05]} 25. Rxe4 {[%emt 0:00:09]} Rxe4 {[%emt 0:00:03]} 26. Rxe4 {[%emt 0:00:57]} Qc8 {[%emt 0:00:43]} 27. Qe1 {[%emt 0:00:41]} a3 {[%emt 0:00:02]} 28. Re2 {[%emt 0:00:23]} Qf5 {[%emt 0:00:55]} 29. Re8+ {[%emt 0:00:07]} Bf8 {[%emt 0:00:03]} 30. Qe4 {[%emt 0:00:03]} Qxe4 {[%emt 0:01:15]} 31. Rxe4 {[%emt 0:00:01]} axb2+ {[%emt 0:00:04]} 32. Bxb2 {[%emt 0:00:02]} Bd6 {[%emt 0:00:04]} 33. f4 {[%emt 0:00:09]} f5 {[%emt 0:00:36]} 34. Rc4 {[%emt 0:00:11]} Ra5 {[%emt 0:00:12]} 35. Rd4 {[%emt 0:00:06]} f6 {[%emt 0:00:04]} 36. g3 {[%emt 0:00:01]} Kf7 {[%emt 0:00:09]} 37. Rd3 {[%emt 0:00:03]} Ke7 {[%emt 0:00:10]} 38. Bc3 {[%emt 0:00:07]} Ra3 {[%emt 0:00:20]} 39. Re3+ {[%emt 0:00:06]} Kd7 {[%emt 0:00:03]} 40. Bd4 {[%emt 0:00:10]} Ra5 {[%emt 0:00:06]} 41. Bc3 {[%emt 0:00:03]} Ra4 {[%emt 0:00:47]} 42. Re1 {[%emt 0:00:05]} Bc5 {[%emt 0:00:14]} 43. Kb2 {[%emt 0:00:05]} a1=Q+ {[%emt 0:00:34]} 44. Rxa1 {[%emt 0:00:01]} Rxa1 {[%emt 0:00:01]} 45. Kxa1 {[%emt 0:00:01]} Kd6 {[%emt 0:00:03]} 46. Kb1 {[%emt 0:00:09]} Kxd5 {[%emt 0:00:01]} 47. Kc2 {[%emt 0:00:07]} Ke4 {[%emt 0:00:01]} 48. h3 {[%emt 0:00:09]} Bf2 {[%emt 0:00:09]} 49. g4 {[%emt 0:00:04]} fxg4 {[%emt 0:00:03]} 50. hxg4 {[%emt 0:00:01]} hxg4 {[%emt 0:00:01]} 0-1

[Event "Polish University-ch Teams 2024"]
[Site "Lublin"]
[Date "2024.02.24"]
[Round "5.15"]
[White "Golecki, Jan"]
[Black "Kulesza, Andrzej"]
[Result "1-0"]
[ECO "B53"]
[WhiteElo "2185"]
[BlackElo "2076"]
[Annotator "RC"]
[PlyCount "95"]
[EventDate "2024.02.22"]
[EventType "team-tourn"]
[EventCountry "POL"]
[SourceTitle "playchess.com"]
[Source "ChessBase"]
[SourceQuality "1"]
[TimeControl "900+5"]

1. e4 {[%emt 0:00:03]} c5 {[%emt 0:00:02]} 2. Nf3 {[%emt 0:00:02]} d6 {[%emt 0:00:02]} 3. d4 {[%emt 0:00:02]} cxd4 {[%emt 0:00:02]} 4. Qxd4 {[%emt 0:00:02]} Bd7 {[%emt 0:00:04]} 5. c4 {[%emt 0:00:09]} Nc6 {[%emt 0:00:02]} 6. Qe3 {[%emt 0:00:00]} Nf6 {[%emt 0:00:13]} 7. Be2 {[%emt 0:00:02]} g6 {[%emt 0:00:25]} 8. O-O {[%emt 0:00:03]} Bg7 {[%emt 0:00:03]} 9. Rd1 {[%emt 0:00:09]} O-O {[%emt 0:00:06]} 10. Nc3 {[%emt 0:00:10]} Rc8 {[%emt 0:00:37]} 11. h3 {[%emt 0:00:08]} a6 {[%emt 0:00:04]} 12. Bd2 {[%emt 0:00:09]} Qc7 {[%emt 0:00:30]} 13. Rac1 {[%emt 0:00:03]} Qb8 {[%emt 0:00:01]} 14. Nd5 {[%emt 0:00:26]} b5 {[%emt 0:02:08]} 15. cxb5 {[%emt 0:00:03]} axb5 {[%emt 0:00:01]} 16. Rxc6 {[%emt 0:00:03]} Bxc6 {[%emt 0:00:26]} 17. Nxe7+ {[%emt 0:00:03]} Kh8 {[%emt 0:00:02]} 18. Nxc8 {[%emt 0:00:05]} Qxc8 {[%emt 0:00:21]} 19. Nd4 {[%emt 0:03:17]} Bxe4 {[%emt 0:00:37]} 20. Nxb5 {[%emt 0:00:12]} Qa8 {[%emt 0:00:46]} 21. Bc3 {[%emt 0:03:50]} Bxg2 {[%emt 0:01:04]} 22. Nxd6 {[%emt 0:00:53]} Bd5 {[%emt 0:01:06]} 23. Be5 {[%emt 0:01:34]} Ne8 {[%emt 0:03:24]} 24. Nxe8 {[%emt 0:00:24]} Rxe8 {[%emt 0:01:12]} 25. Bxg7+ {[%emt 0:01:24]} Kxg7 {[%emt 0:00:05]} 26. Qd4+ {[%emt 0:00:01]} f6 {[%emt 0:01:06]} 27. Qxd5 {[%emt 0:00:09]} Qxd5 {[%emt 0:00:02]} 28. Rxd5 {[%emt 0:00:02]} Rxe2 {[%emt 0:00:01]} 29. Rb5 {[%emt 0:00:02]} Kf7 {[%emt 0:00:02]} 30. a4 {[%emt 0:00:15]} Ke6 {[%emt 0:00:26]} 31. a5 {[%emt 0:00:04]} Re1+ {[%emt 0:00:13]} 32. Kg2 {[%emt 0:00:01]} Ra1 {[%emt 0:00:02]} 33. b4 {[%emt 0:00:04]} f5 {[%emt 0:00:02]} 34. Rb7 {[%emt 0:00:12]} Ra4 {[%emt 0:00:10]} 35. Rb6+ {[%emt 0:00:31]} Kd7 {[%emt 0:00:23]} 36. h4 {[%emt 0:00:18]} Kc7 {[%emt 0:00:31]} 37. Kg3 {[%emt 0:00:19]} Ra3+ {[%emt 0:00:03]} 38. f3 {[%emt 0:00:01]} Rb3 {[%emt 0:00:13]} 39. Kf4 {[%emt 0:00:03]} h6 {[%emt 0:00:21]} 40. Ke5 {[%emt 0:00:35]} Rxf3 {[%emt 0:00:16]} 41. Rxg6 {[%emt 0:00:03]} f4 {[%emt 0:00:27]} 42. Rf6 {[%emt 0:00:31]} Rb3 {[%emt 0:00:02]} 43. Rxf4 {[%emt 0:00:02]} Kc6 {[%emt 0:00:00]} 44. Kf6 {[%emt 0:00:06]} Rg3 {[%emt 0:00:09]} 45. h5 {[%emt 0:00:05]} Kb5 {[%emt 0:00:13]} 46. Ke7 {[%emt 0:00:21]} Rg7+ {[%emt 0:00:28]} 47. Ke6 {[%emt 0:00:05]} Rg5 {[%emt 0:00:02]} 48. Rf5+ {[%emt 0:00:01]} 1-0

[Event "Polish University-ch Teams 2024"]
[Site "Lublin"]
[Date "2024.02.24"]
[Round "5.16"]
[White "Namyslak, Piotr"]
[Black "Leskiewicz, Ignacy"]
[Result "0-1"]
[ECO "A34"]
[WhiteElo "1763"]
[BlackElo "2180"]
[Annotator "RC"]
[PlyCount "60"]
[EventDate "2024.02.22"]
[EventType "team-tourn"]
[EventCountry "POL"]
[SourceTitle "playchess.com"]
[Source "ChessBase"]
[SourceQuality "1"]
[TimeControl "900+5"]

1. c4 {[%emt 0:00:02]} b6 {[%emt 0:00:09]} 2. Nc3 {[%emt 0:00:02]} Bb7 {[%emt 0:00:01]} 3. e4 {[%emt 0:00:01]} c5 {[%emt 0:00:30]} 4. f4 {[%emt 0:00:10]} Nc6 {[%emt 0:00:15]} 5. Nf3 {[%emt 0:00:03]} g6 {[%emt 0:00:22]} 6. b3 {[%emt 0:00:36]} Bg7 {[%emt 0:00:02]} 7. Bb2 {[%emt 0:00:01]} Nh6 {[%emt 0:01:36]} 8. Na4 {[%emt 0:00:57]} Nd4 {[%emt 0:02:23]} 9. d3 {[%emt 0:00:40]} Qc7 {[%emt 0:01:17]} 10. g3 {[%emt 0:01:13]} f5 {[%emt 0:00:35]} 11. Bg2 {[%emt 0:00:29]} Ng4 {[%emt 0:00:50]} 12. Nxd4 {[%emt 0:00:46]} cxd4 {[%emt 0:00:28]} 13. Bf3 {[%emt 0:01:22]} Ne3 {[%emt 0:00:23]} 14. Qe2 {[%emt 0:00:03]} fxe4 {[%emt 0:01:05]} 15. dxe4 {[%emt 0:01:24]} O-O {[%emt 0:00:58]} 16. Rb1 {[%emt 0:00:42]} e5 {[%emt 0:01:15]} 17. fxe5 {[%emt 0:00:18]} Bxe5 {[%emt 0:00:59]} 18. Rg1 {[%emt 0:01:39]} b5 {[%emt 0:00:01]} 19. cxb5 {[%emt 0:01:10]} Rac8 {[%emt 0:02:13]} 20. Bc1 {[%emt 0:00:25]} Qxc1+ {[%emt 0:00:38]} 21. Rxc1 {[%emt 0:00:01]} Rxc1+ {[%emt 0:00:01]} 22. Kf2 {[%emt 0:00:24]} Rc2 {[%emt 0:00:02]} 23. Qxc2 {[%emt 0:00:13]} Nxc2 {[%emt 0:00:01]} 24. Nc5 {[%emt 0:00:01]} d3 {[%emt 0:00:00]} 25. Nxd7 {[%emt 0:01:56]} Bd4+ {[%emt 0:00:19]} 26. Kg2 {[%emt 0:02:37]} Ne3+ {[%emt 0:00:08]} 27. Kf2 {[%emt 0:00:05]} Ng4+ {[%emt 0:00:26]} 28. Kg2 {[%emt 0:00:00]} Rxf3 {[%emt 0:00:12]} 29. Kxf3 {[%emt 0:00:00]} Bxg1 {[%emt 0:00:03]} 30. Nf6+ {[%emt 0:00:00]} Nxf6 {[%emt 0:00:02]} 0-1

[Event "Polish University-ch Teams 2024"]
[Site "Lublin"]
[Date "2024.02.24"]
[Round "5.17"]
[White "Poziomkowski, Szymon"]
[Black "Panczuk, Grzegorz"]
[Result "0-1"]
[ECO "B31"]
[WhiteElo "1848"]
[BlackElo "1736"]
[Annotator "NA"]
[PlyCount "86"]
[EventDate "2024.02.22"]
[EventType "team-tourn"]
[EventCountry "POL"]
[SourceTitle "playchess.com"]
[Source "ChessBase"]
[SourceQuality "1"]
[TimeControl "900+5"]

1. e4 {[%emt 0:00:02]} c5 {[%emt 0:00:02]} 2. Nf3 {[%emt 0:00:02]} Nc6 {[%emt 0:00:01]} 3. Bb5 {[%emt 0:00:04]} Nf6 {[%emt 0:00:01]} 4. e5 {[%emt 0:00:18]} Nd5 {[%emt 0:00:03]} 5. O-O {[%emt 0:00:31]} g6 {[%emt 0:00:09]} 6. c3 {[%emt 0:01:26]} Bg7 {[%emt 0:01:20]} 7. Re1 {[%emt 0:00:10]} O-O {[%emt 0:00:41]} 8. d3 {[%emt 0:01:52]} Nc7 {[%emt 0:00:48]} 9. Bxc6 {[%emt 0:00:05]} dxc6 {[%emt 0:00:02]} 10. Be3 {[%emt 0:00:12]} b6 {[%emt 0:00:24]} 11. Bf4 {[%emt 0:02:18]} Bf5 {[%emt 0:03:09]} 12. d4 {[%emt 0:00:19]} Nd5 {[%emt 0:00:48]} 13. Bg3 {[%emt 0:00:12]} cxd4 {[%emt 0:00:22]} 14. Nxd4 {[%emt 0:00:03]} Qc8 {[%emt 0:00:30]} 15. Nd2 {[%emt 0:00:33]} c5 {[%emt 0:00:15]} 16. N4f3 {[%emt 0:01:12]} Rd8 {[%emt 0:00:40]} 17. Qe2 {[%emt 0:00:12]} Bh6 {[%emt 0:01:17]} 18. Ne4 {[%emt 0:00:39]} Nf4 {[%emt 0:00:28]} 19. Bxf4 {[%emt 0:02:32]} Bxf4 {[%emt 0:00:02]} 20. Rad1 {[%emt 0:00:22]} Qc6 {[%emt 0:01:28]} 21. Rxd8+ {[%emt 0:01:45]} Rxd8 {[%emt 0:00:01]} 22. h3 {[%emt 0:00:42]} Bxe4 {[%emt 0:00:48]} 23. Qxe4 {[%emt 0:00:01]} Qxe4 {[%emt 0:00:01]} 24. Rxe4 {[%emt 0:00:02]} Rd1+ {[%emt 0:00:02]} 25. Re1 {[%emt 0:00:31]} Rxe1+ {[%emt 0:00:05]} 26. Nxe1 {[%emt 0:00:02]} Bxe5 {[%emt 0:00:09]} 27. Nd3 {[%emt 0:00:00]} Bd6 {[%emt 0:00:34]} 28. c4 {[%emt 0:00:01]} e5 {[%emt 0:00:10]} 29. f3 {[%emt 0:00:11]} f5 {[%emt 0:00:02]} 30. Kf2 {[%emt 0:00:01]} Kf7 {[%emt 0:00:05]} 31. g4 {[%emt 0:00:08]} e4 {[%emt 0:00:40]} 32. fxe4 {[%emt 0:00:21]} fxe4 {[%emt 0:00:01]} 33. Nc1 {[%emt 0:00:01]} Bf4 {[%emt 0:00:44]} 34. Ne2 {[%emt 0:00:01]} Bd2 {[%emt 0:00:02]} 35. Ng3 {[%emt 0:00:16]} e3+ {[%emt 0:00:33]} 36. Kf3 {[%emt 0:00:01]} Ke6 {[%emt 0:00:06]} 37. Nf1 {[%emt 0:00:44]} Ke5 {[%emt 0:00:18]} 38. Nxe3 {[%emt 0:00:02]} Bxe3 {[%emt 0:00:06]} 39. Kxe3 {[%emt 0:00:01]} g5 {[%emt 0:00:01]} 40. a3 {[%emt 0:00:15]} a6 {[%emt 0:00:23]} 41. b4 {[%emt 0:00:14]} a5 {[%emt 0:00:09]} 42. bxc5 {[%emt 0:00:11]} bxc5 43. a4 {[%emt 0:00:05]} h6 {[%emt 0:00:10]} 0-1

[Event "Polish University-ch Teams 2024"]
[Site "Lublin"]
[Date "2024.02.24"]
[Round "5.18"]
[White "Ligeza, Aleksandra"]
[Black "Parol, Pola"]
[Result "0-1"]
[ECO "E46"]
[WhiteElo "1170"]
[BlackElo "2030"]
[Annotator "NA"]
[PlyCount "66"]
[EventDate "2024.02.22"]
[EventType "team-tourn"]
[EventCountry "POL"]
[SourceTitle "playchess.com"]
[Source "ChessBase"]
[SourceQuality "1"]
[TimeControl "900+5"]

1. d4 {[%emt 0:00:01]} Nf6 {[%emt 0:00:01]} 2. c4 {[%emt 0:00:03]} e6 {[%emt 0:00:00]} 3. Nc3 {[%emt 0:00:02]} Bb4 {[%emt 0:00:02]} 4. e3 {[%emt 0:00:03]} d5 {[%emt 0:00:02]} 5. cxd5 {[%emt 0:00:05]} exd5 {[%emt 0:00:01]} 6. Nge2 {[%emt 0:00:03]} c6 {[%emt 0:00:08]} 7. g3 {[%emt 0:00:16]} O-O {[%emt 0:00:03]} 8. Bg2 {[%emt 0:00:02]} Bg4 {[%emt 0:00:23]} 9. Bd2 {[%emt 0:00:13]} Re8 {[%emt 0:00:50]} 10. O-O {[%emt 0:00:13]} Bd6 {[%emt 0:00:19]} 11. Qc2 {[%emt 0:00:21]} Nbd7 {[%emt 0:00:28]} 12. Nf4 {[%emt 0:00:47]} Nf8 {[%emt 0:00:30]} 13. f3 {[%emt 0:01:01]} Bd7 {[%emt 0:00:32]} 14. Nce2 {[%emt 0:01:00]} Qc8 {[%emt 0:00:20]} 15. e4 {[%emt 0:01:02]} dxe4 {[%emt 0:00:24]} 16. fxe4 {[%emt 0:00:05]} Bxf4 {[%emt 0:05:27]} 17. Bxf4 {[%emt 0:00:35]} Bh3 {[%emt 0:00:35]} 18. e5 {[%emt 0:00:46]} Bxg2 {[%emt 0:00:13]} 19. Kxg2 {[%emt 0:00:05]} Nd5 {[%emt 0:00:06]} 20. Qe4 {[%emt 0:00:46]} Qg4 {[%emt 0:00:46]} 21. h3 {[%emt 0:00:46]} Qe6 {[%emt 0:00:13]} 22. Ng1 {[%emt 0:00:46]} Ng6 {[%emt 0:00:38]} 23. Bd2 {[%emt 0:00:49]} f6 {[%emt 0:01:38]} 24. Rae1 {[%emt 0:01:53]} fxe5 {[%emt 0:00:25]} 25. dxe5 {[%emt 0:00:14]} Qxe5 {[%emt 0:00:33]} 26. Qxe5 {[%emt 0:00:12]} Rxe5 {[%emt 0:00:03]} 27. Rxe5 {[%emt 0:00:26]} Nxe5 {[%emt 0:00:01]} 28. Re1 {[%emt 0:01:11]} Nd3 {[%emt 0:00:09]} 29. Rb1 {[%emt 0:00:10]} Re8 {[%emt 0:00:22]} 30. Bc3 {[%emt 0:00:28]} Ne3+ {[%emt 0:00:25]} 31. Kf3 {[%emt 0:00:20]} Nd5 {[%emt 0:00:14]} 32. Kg2 {[%emt 0:00:14]} b5 {[%emt 0:00:25]} 33. Rd1 {[%emt 0:00:33]} Ne3+ {[%emt 0:00:03]} 0-1